fUSD/lending_fUSD_20241018
["ID","MTS","AMOUNT","RATE_DAILY","PERIOD"]
[340427720,1729231251270,-2130.36,0.00010999,2]
[340427721,1729231251318,-2130.36,0.00010999,2]
[340427722,1729231251368,-500.0,0.00010999,2]
[340427723,1729231251415,-2130.36,0.00010999,2]
[340427724,1729231251464,-500.0,0.00010999,2]
[340427725,1729231251513,-2130.36,0.00010999,2]
[340427726,1729231251559,-500.0,0.00010999,2]
[340427727,1729231251610,-2130.36,0.00010999,2]
[340427728,1729231251826,-500.0,0.00010999,2]
[340427729,1729231251877,-2130.36,0.00010999,2]
[340427730,1729231251926,-500.0,0.00010999,2]
[340427731,1729231251975,-229.67525152,0.00010999,2]
[340427732,1729231252028,-3572.31334513,0.00011,15]
[340427733,1729231252082,-6770666.25660834,0.00011,2]
[340427734,1729231252135,-668460.0511967,0.00011,2]
[340427735,1729231252183,-205.59259048,0.00011,2]
[340427736,1729231252234,-6222039.53220248,0.00011,2]
[340427737,1729231252282,-400.0,0.00011,3]
[340427738,1729231252333,-1119710.91518455,0.00011,2]
[340427739,1729231252378,-31944.0,0.00011,2]
[340427740,1729231252428,-609091.74893351,0.00011,2]
[340427741,1729231252476,-261525.04964321,0.00011,2]
[340427742,1729231252527,-350340.00280899,0.00011,2]
[340427743,1729231252575,-313134.76891598,0.00011,2]
[340427744,1729231252625,-1632255.18310109,0.00011,2]
[340427745,1729231252671,-63922.63859006,0.00011,2]
[340427746,1729231252716,-794.0,0.00011,2]
[340427747,1729231252763,-150.0,0.00011,2]
[340427748,1729231252812,-1352.8,0.00011,2]
[340427749,1729231252859,-300.98,0.00011,2]
[340427750,1729231252906,-722.6,0.00011,2]
[340427751,1729231252954,-543.37,0.00011,2]
[340427752,1729231253002,-150.0,0.00011,2]
[340427753,1729231253049,-300.68,0.00011,2]
[340427754,1729231253095,-848.68,0.00011,2]
[340427755,1729231253142,-150.0,0.00011,2]
[340427756,1729231253186,-429.8,0.00011,2]
[340427757,1729231253231,-250.0,0.00011,2]
[340427758,1729231253277,-293.8,0.00011,2]
[340427759,1729231253504,500.0,0.00010999,2]
[340427760,1729231253562,610.72254974,0.000109,2]
[340427761,1729231253616,2130.36,0.00010999,2]
[340427762,1729231253676,500.0,0.00010999,2]
[340427763,1729231253737,2130.36,0.00010999,2]
[340427764,1729231253791,500.0,0.00010999,2]
[340427765,1729231253851,2130.36,0.00010999,2]
[340427766,1729231253908,500.0,0.00010999,2]
[340427767,1729231253970,2130.36,0.00010999,2]
[340427768,1729231254027,500.0,0.00010999,2]
[340427769,1729231254082,2130.44037369,0.00010999,2]
[340427770,1729231254136,500.0,0.00010999,2]
[340427771,1729231254189,500.0,0.00010999,2]
[340427772,1729231254251,500.0,0.00010999,2]
[340427773,1729231254313,500.0,0.00010999,2]
[340427774,1729231254386,633.21964735,0.00010999,2]
[340427775,1729231254731,1021.68365747,0.00010739,2]
[340427776,1729231254807,7118.86515446,0.00011,2]
[340427777,1729231254906,1179.80220077,0.00010779,2]
[340427778,1729231254990,403.10751228,0.000109,2]
[340427779,1729231255154,159.83807682,0.00010973,2]
[340427780,1729231261484,20092.74290954,0.0001089,2]
[340427781,1729231266854,501.0,8.568e-05,2]
[340427782,1729231267502,249.12,0.00010959,2]
[340427783,1729231270174,500.0,0.00010958,2]
[340427784,1729231270442,500.0,0.00010999,2]
[340427785,1729231270767,500.0,0.00010999,2]
[340427786,1729231271031,500.0,0.00010999,2]
[340427787,1729231271322,500.0,0.00010999,2]
[340427788,1729231272576,150.0,0.0001088,2]
[340427789,1729231272933,500.0,0.00010999,2]
[340427790,1729231273616,500.0,0.00010999,2]
[340427791,1729231273945,500.0,0.00010999,2]
[340427792,1729231274335,500.0,0.00010999,2]
[340427793,1729231274704,500.0,0.00010999,2]
[340427794,1729231275019,500.0,0.00010999,2]
[340427795,1729231275237,201.09721548,0.00010973,2]
[340427796,1729231275371,500.0,0.00010999,2]
[340427797,1729231278009,207.6,0.00010959,2]
[340427798,1729231285037,232.0347,0.00010758,2]
[340427799,1729231285748,500.0,0.00010958,2]
[340427800,1729231286055,500.0,0.00010958,2]
[340427801,1729231286341,500.0,0.00010958,2]
[340427802,1729231286598,500.0,0.00010958,2]
[340427803,1729231286925,500.0,0.00010958,2]
[340427804,1729231287227,500.0,0.00010989,2]
[340427805,1729231287870,500.0,0.00010998,2]
[340427806,1729231288248,500.0,0.00010999,2]
[340427807,1729231288521,500.0,0.00010999,2]
[340427808,1729231288758,173.0,0.00010959,2]
[340427809,1729231288840,500.0,0.00010999,2]
[340427810,1729231289213,500.0,0.00010999,2]
[340427811,1729231289519,500.0,0.00010999,2]
[340427812,1729231289827,500.0,0.00010999,2]
[340427813,1729231290092,500.0,0.00010999,2]
[340427814,1729231290352,299.47034874,0.00010999,2]
[340427815,1729231299282,865.03,0.00010959,2]
[340427816,1729231306798,340.0,0.000109,3]
[340427817,1729231320609,400.0,0.000109,3]
[340427818,1729231330469,330.0,0.0001099,3]
[340427819,1729231332189,1018.16,9.318e-05,2]
[340427820,1729231333771,500.0,0.00010998,2]
[340427821,1729231334140,500.0,0.00010999,2]
[340427822,1729231334438,500.0,0.00010999,2]
[340427823,1729231334798,500.0,0.00010999,2]
[340427824,1729231335107,500.0,0.00010999,2]
[340427825,1729231335424,500.0,0.00010999,2]
[340427826,1729231335740,500.0,0.00010999,2]
[340427827,1729231336123,500.0,0.00010999,2]
[340427828,1729231336415,500.0,0.00010999,2]
[340427829,1729231336740,500.0,0.00010999,2]
[340427830,1729231337086,500.0,0.00010999,2]
[340427831,1729231337510,269.8237745,0.00010999,2]
[340427832,1729231346421,330.0,0.0001099,3]
[340427833,1729231352371,500.0,0.00010998,2]
[340427834,1729231352687,500.0,0.00010999,2]
[340427835,1729231353029,500.0,0.00010999,2]
[340427836,1729231353340,500.0,0.00010999,2]
[340427837,1729231353656,500.0,0.00010999,2]
[340427838,1729231353976,500.0,0.00010999,2]
[340427839,1729231354313,500.0,0.00010999,2]
[340427840,1729231354646,500.0,0.00010999,2]
[340427841,1729231354958,500.0,0.00010999,2]
[340427842,1729231355303,500.0,0.00010999,2]
[340427843,1729231355693,500.0,0.00010999,2]
[340427844,1729231356019,500.0,0.00010999,2]
[340427845,1729231356449,500.0,0.00010999,2]
[340427846,1729231356711,500.0,0.00010999,2]
[340427847,1729231357012,500.0,0.00010999,2]
[340427848,1729231357312,500.0,0.00010999,2]
[340427849,1729231357680,500.0,0.00010999,2]
[340427850,1729231358015,516.3055381,0.00010999,2]
[340427851,1729231360408,500.0,0.00010998,2]
[340427852,1729231362897,500.0,0.00010999,2]
[340427853,1729231363233,500.0,0.00010999,2]
[340427855,1729231391493,1500.0,0.00011,2]
[340427856,1729231396725,-457.382313,0.00011005,2]
[340427857,1729231396770,-150.0,0.00011043,2]
[340427858,1729231396820,-3339.0131179,0.00011061,2]
[340427859,1729231396870,-1427.4871598,0.00011061,2]
[340427860,1729231396919,-182.0115797,0.00011069,2]
[340427861,1729231396964,-150.0,0.00011099,2]
[340427862,1729231397010,-543.62,0.000111,2]
[340427863,1729231397053,-756.17,0.000111,2]
[340427864,1729231397095,-150.0,0.000111,2]
[340427865,1729231397143,-424.34,0.000111,2]
[340427866,1729231397189,-359.33,0.000111,2]
[340427867,1729231397234,-424.34,0.000111,2]
[340427868,1729231397279,-826.94,0.000111,2]
[340427869,1729231397326,-150.0,0.000111,2]
[340427870,1729231397368,-424.34,0.000111,2]
[340427871,1729231397414,-358.97,0.000111,2]
[340427872,1729231397463,-150.0,0.000112,2]
[340427873,1729231397508,-305.71,0.000112,2]
[340427874,1729231397552,-756.17,0.000112,2]
[340427875,1729231397599,-359.33,0.000112,2]
[340427876,1729231397643,-858.55,0.000112,2]
[340427877,1729231397687,-424.34,0.000112,2]
[340427878,1729231397737,-300.0,0.000112,2]
[340427879,1729231397782,-756.17,0.000112,2]
[340427880,1729231397826,-424.34,0.000112,2]
[340427881,1729231397868,-359.33,0.000112,2]
[340427882,1729231397916,-150.0,0.000112,2]
[340427883,1729231397962,-426.6,0.000112,2]
[340427884,1729231418023,-408.11,0.00011217,2]
[340427885,1729231418069,-434.65,0.000113,2]
[340427886,1729231418114,-150.29,0.000113,2]
[340427887,1729231418158,-151.1,0.000113,2]
[340427888,1729231418203,-359.33,0.000113,2]
[340427889,1729231418248,-150.0,0.000113,2]
[340427890,1729231418292,-424.34,0.000113,2]
[340427891,1729231418336,-429.75,0.000113,2]
[340427892,1729231418379,-300.0,0.000113,2]
[340427893,1729231418422,-359.01,0.000113,2]
[340427894,1729231418466,-150.0,0.000113,2]
[340427895,1729231418511,-228.16,0.000113,2]
[340427896,1729231418556,-820.88,0.000113,2]
[340427897,1729231418599,-150.0,0.000113,2]
[340427898,1729231418644,-150.0,0.000113,2]
[340427899,1729231418690,-1501.95,0.00011357,2]
[340427900,1729231418736,-162.42,0.0001139,2]
[340427901,1729231418782,-380.53,0.00011453,2]
[340427902,1729231418829,-396.98615489,0.00011465,2]
[340427903,1729231418876,-479.27,0.00011507,2]
[340427904,1729231418925,-2751.0,0.00011507,2]
[340427905,1729231418976,-1018.16,0.00011582,2]
[340427906,1729231419023,-1000.0,0.00011751,2]
[340427907,1729231419070,-1000.0,0.00011781,2]
[340427908,1729231419114,-1000.0,0.00011781,2]
[340427909,1729231419159,-1000.0,0.00011781,2]
[340427910,1729231419205,-1000.0,0.00011781,2]
[340427911,1729231419247,-1000.0,0.00011781,2]
[340427912,1729231419290,-1000.0,0.00011781,2]
[340427913,1729231419334,-634.0,0.00011781,2]
[340427914,1729231419380,-1000.0,0.00011781,2]
[340427915,1729231419426,-1000.0,0.00011781,2]
[340427916,1729231419471,-1000.0,0.00011781,2]
[340427917,1729231419516,-1000.0,0.00011781,2]
[340427918,1729231419563,-1000.0,0.00011781,2]
[340427919,1729231419608,-1000.0,0.00011781,2]
[340427920,1729231419653,-1000.0,0.00011781,2]
[340427921,1729231419698,-1000.0,0.00011781,2]
[340427922,1729231419743,-1000.0,0.00011781,2]
[340427923,1729231419789,-1000.0,0.00011781,2]
[340427924,1729231419836,-1000.0,0.00011781,2]
[340427925,1729231419889,-1000.0,0.00011781,2]
[340427926,1729231419945,-1000.0,0.00011781,2]
[340427927,1729231419992,-1000.0,0.00011781,2]
[340427928,1729231420037,-1000.0,0.00011781,2]
[340427929,1729231420084,-1000.0,0.00011781,2]
[340427930,1729231420134,-1000.0,0.00011781,2]
[340427931,1729231420178,-1000.0,0.00011781,2]
[340427932,1729231420219,-1000.0,0.00011781,2]
[340427933,1729231420266,-1000.0,0.00011781,2]
[340427934,1729231420314,-1000.0,0.00011781,2]
[340427935,1729231420356,-1000.0,0.00011781,2]
[340427936,1729231420400,-1000.0,0.00011781,2]
[340427937,1729231420450,-1000.0,0.00011781,2]
[340427938,1729231420493,-1000.0,0.00011781,2]
[340427939,1729231420535,-1000.0,0.00011781,2]
[340427940,1729231420576,-1000.0,0.00011781,2]
[340427941,1729231420617,-1000.0,0.00011781,2]
[340427942,1729231420659,-1000.0,0.00011781,2]
[340427943,1729231420700,-1000.0,0.00011781,2]
[340427944,1729231420740,-1000.0,0.00011781,2]
[340427945,1729231420784,-303.28089132,0.000119,2]
[340427946,1729231420827,-5000.0,0.00012,2]
[340427947,1729231420877,-3502.37345723,0.00012,10]
[340427948,1729231420924,-222.03,0.00012033,2]
[340427949,1729231420967,-479.27,0.00012055,2]
[340427950,1729231421194,-152.0,0.00012108,2]
[340427951,1729231421242,-255.0,0.00012153,2]
[340427952,1729231421287,-500.0,0.00012282,2]
[340427953,1729231421329,-600.0,0.00012329,2]
[340427954,1729231421372,-600.0,0.00012329,2]
[340427955,1729231421416,-600.0,0.00012329,2]
[340427956,1729231421460,-600.0,0.00012329,2]
[340427957,1729231421508,-600.0,0.00012329,2]
[340427958,1729231421554,-600.0,0.00012329,2]
[340427959,1729231421597,-600.0,0.00012329,2]
[340427960,1729231421639,-600.0,0.00012329,2]
[340427961,1729231421682,-600.0,0.00012329,2]
[340427962,1729231421726,-600.0,0.00012329,2]
[340427963,1729231421770,-152.908841,0.00012329,2]
[340427964,1729231421816,-151.0,0.00012329,2]
[340427965,1729231421860,-154.651063,0.00012329,2]
[340427966,1729231421912,-151.0,0.00012329,2]
[340427967,1729231421961,-180.27016,0.00012329,2]
[340427968,1729231422010,-151.0,0.00012329,2]
[340427969,1729231422055,-151.0,0.00012329,2]
[340427970,1729231422100,-151.0,0.00012329,2]
[340427971,1729231422145,-158.001064,0.00012329,2]
[340427972,1729231422189,-151.0,0.00012329,2]
[340427973,1729231422230,-151.0,0.00012329,2]
[340427974,1729231422272,-160.29719,0.00012329,2]
[340427975,1729231422319,-168.851076,0.00012329,2]
[340427976,1729231422365,-151.0,0.00012329,2]
[340427977,1729231422408,-151.0,0.00012329,2]
[340427978,1729231422454,-151.0,0.00012329,2]
[340427979,1729231422500,-151.0,0.00012329,2]
[340427980,1729231422545,-151.0,0.00012329,2]
[340427981,1729231422590,-151.0,0.00012329,2]
[340427982,1729231422635,-151.0,0.00012329,2]
[340427983,1729231422680,-155.126391,0.00012329,2]
[340427984,1729231422724,-152.271521,0.00012329,2]
[340427985,1729231422769,-155.282432,0.00012329,2]
[340427986,1729231422812,-151.0,0.00012329,2]
[340427987,1729231422855,-151.0,0.00012329,2]
[340427988,1729231422900,-151.0,0.00012329,2]
[340427989,1729231422945,-153.671225,0.00012329,2]
[340427990,1729231422988,-151.0,0.00012329,2]
[340427991,1729231423033,-151.0,0.00012329,2]
[340427992,1729231423077,-151.0,0.00012329,2]
[340427993,1729231423120,-151.0,0.00012329,2]
[340427994,1729231423164,-260.091116,0.00012329,2]
[340427995,1729231423207,-260.091116,0.00012329,2]
[340427996,1729231423249,-260.091116,0.00012329,2]
[340427997,1729231423292,-260.091116,0.00012329,2]
[340427998,1729231423334,-260.091116,0.00012329,2]
[340427999,1729231423377,-260.091116,0.00012329,2]
[340428000,1729231423420,-260.091116,0.00012329,2]
[340428001,1729231423465,-260.091116,0.00012329,2]
[340428002,1729231423507,-193.943831,0.00012329,2]
[340428003,1729231423550,-151.0,0.00012329,2]
[340428004,1729231423593,-154.073147,0.00012329,2]
[340428005,1729231423634,-151.0,0.00012329,2]
[340428006,1729231423678,-153.240984,0.00012329,2]
[340428007,1729231423719,-151.0,0.00012329,2]
[340428008,1729231423760,-151.0,0.00012329,2]
[340428009,1729231423801,-151.0,0.00012329,2]
[340428010,1729231423845,-151.0,0.00012329,2]
[340428011,1729231423890,-151.0,0.00012329,2]
[340428012,1729231423936,-151.0,0.00012329,2]
[340428013,1729231423980,-151.0,0.00012329,2]
[340428014,1729231424026,-151.0,0.00012329,2]
[340428015,1729231424072,-151.0,0.00012329,2]
[340428016,1729231424118,-181.069212,0.00012329,2]
[340428017,1729231424161,-151.0,0.00012329,2]
[340428018,1729231424204,-270.265689,0.00012329,2]
[340428019,1729231424250,-151.0,0.00012329,2]
[340428020,1729231424292,-156.138797,0.00012329,2]
[340428021,1729231424338,-240.589147,0.00012329,2]
[340428022,1729231424381,-151.0,0.00012329,2]
[340428023,1729231424428,-153.133573,0.00012329,2]
[340428024,1729231424474,-151.0,0.00012329,2]
[340428025,1729231424518,-151.0,0.00012329,2]
[340428026,1729231424562,-151.0,0.00012329,2]
[340428027,1729231424610,-151.843763,0.00012329,2]
[340428028,1729231424652,-151.0,0.00012329,2]
[340428029,1729231424701,-151.0,0.00012329,2]
[340428030,1729231424745,-176.685562,0.00012329,2]
[340428031,1729231424790,-151.0,0.00012329,2]
[340428032,1729231424833,-151.0,0.00012329,2]
[340428033,1729231424875,-151.0,0.00012329,2]
[340428034,1729231424922,-151.0,0.00012329,2]
[340428035,1729231424967,-167.0,0.00012445,2]
[340428036,1729231425012,-167.56,0.00012445,2]
[340428037,1729231425056,-167.0,0.00012445,2]
[340428038,1729231432716,489.26,0.00011,2]
[340428039,1729231442065,251.38,0.00012,4]
[340428040,1729231443506,500.0,0.00010958,2]
[340428041,1729231443822,158.01478326,0.00010999,2]
[340428042,1729231447707,500.0,0.00010958,2]
[340428043,1729231448019,500.0,0.00010958,2]
[340428044,1729231448721,-500.0,0.00010958,2]
[340428045,1729231448766,-300.0,0.00012578,2]
[340428046,1729231448809,-45173.85892178,0.00012579,2]
[340428047,1729231448854,-479.27,0.00012603,2]
[340428048,1729231448900,-161.19089875,0.00012799,2]
[340428049,1729231448951,-360.0,0.000128,2]
[340428050,1729231449001,-1000.0,0.000128,2]
[340428051,1729231449044,-300.0,0.00012877,2]
[340428052,1729231449089,-300.0,0.00012877,2]
[340428053,1729231449135,-306.88753229,0.00012877,2]
[340428054,1729231449180,-300.0,0.00012877,2]
[340428055,1729231449226,-300.0,0.00012877,2]
[340428056,1729231449272,-12582.36722481,0.0001289,2]
[340428060,1729231638113,-3491.06166116,0.00010858,2]
[340428061,1729231656307,167.41,9.436e-05,2]
[340428062,1729231697433,1000.0,0.00025,120]
[340428067,1729231832507,-2203.60884502,0.00010803,2]
[340428068,1729231832519,-346.39115498,0.00010803,2]
[340428069,1729231832529,-150.0,0.00010837,2]
[340428070,1729231832539,-172.32534949,0.00010858,2]
[340428071,1729231832548,-232.28349553,0.00010858,2]
[340428072,1729231832560,-5635.91092759,0.00010858,2]
[340428073,1729231832571,-2059.28341572,0.00010858,2]
[340428074,1729231832580,-151.15,0.0001088,2]
[340428075,1729231832590,-250.0,0.00010899,2]
[340428076,1729231832599,-150.0,0.00010957,2]
[340428077,1729231832609,-500.0,0.00010958,2]
[340428078,1729231832618,-500.0,0.00010958,2]
[340428079,1729231832628,-500.0,0.00010958,2]
[340428080,1729231832637,-500.0,0.00010958,2]
[340428081,1729231832646,-500.0,0.00010958,2]
[340428082,1729231832656,-500.0,0.00010958,2]
[340428083,1729231832666,-500.0,0.00010958,2]
[340428084,1729231832675,-500.0,0.00010958,2]
[340428085,1729231832684,-500.0,0.00010958,2]
[340428086,1729231832692,-500.0,0.00010958,2]
[340428087,1729231832701,-565.46117708,0.00010958,2]
[340428088,1729231832721,-2.40193574,0.00010958,2]
[340428089,1729231832730,-159.8,0.00010959,2]
[340428090,1729231832739,-573.5,0.00010959,2]
[340428091,1729231832748,-107.22976017,0.00010959,2]
[340428092,1729231832759,-370.69023983,0.00010959,2]
[340428093,1729231832770,-398.26,0.00010959,2]
[340428094,1729231832780,-331.89,0.00010959,2]
[340428095,1729231832789,-500.0,0.00010998,2]
[340428096,1729231832799,-500.0,0.00010998,2]
[340428097,1729231832808,-500.0,0.00010999,2]
[340428098,1729231832817,-500.0,0.00010999,2]
[340428099,1729231832827,-500.0,0.00010999,2]
[340428100,1729231832836,-500.0,0.00010999,2]
[340428101,1729231832846,-500.0,0.00010999,2]
[340428102,1729231832856,-500.0,0.00010999,2]
[340428103,1729231832866,-500.0,0.00010999,2]
[340428104,1729231832875,-500.0,0.00010999,2]
[340428105,1729231832884,-500.0,0.00010999,2]
[340428106,1729231832893,-500.0,0.00010999,2]
[340428107,1729231832903,-500.0,0.00010999,2]
[340428108,1729231832912,-393.17917431,0.00010999,2]
[340428109,1729231832921,-500.0,0.00010999,2]
[340428110,1729231832930,-500.0,0.00010999,2]
[340428111,1729231832939,-500.0,0.00010999,2]
[340428112,1729231832949,-500.0,0.00010999,2]
[340428113,1729231832959,-500.0,0.00010999,2]
[340428114,1729231832969,-500.0,0.00010999,2]
[340428115,1729231832978,-500.0,0.00010999,2]
[340428116,1729231832987,-500.0,0.00010999,2]
[340428117,1729231832996,-500.0,0.00010999,2]
[340428118,1729231833006,-164.56231811,0.00010999,2]
[340428119,1729231833015,-455.34,0.00011,2]
[340428120,1729231833025,-395.54,0.00011068,2]
[340428121,1729231833039,-150.0,0.00011164,2]
[340428122,1729231833049,-179.33,0.00011164,2]
[340428123,1729231833058,-286.56,0.00011403,2]
[340428124,1729231833068,-286.56,0.00011406,2]
[340428125,1729231833078,-286.56,0.00011409,2]
[340428126,1729231833088,-286.56,0.00011412,2]
[340428127,1729231833098,-286.56,0.00011415,2]
[340428128,1729231833107,-286.56,0.00011418,2]
[340428129,1729231833117,-286.56,0.00011421,2]
[340428130,1729231833126,-286.56,0.00011424,2]
[340428131,1729231833135,-286.56,0.00011427,2]
[340428132,1729231833148,-286.56,0.0001143,2]
[340428133,1729231833158,-286.56,0.00011433,2]
[340428134,1729231833167,-286.56,0.00011436,2]
[340428135,1729231833179,-286.56,0.00011439,2]
[340428136,1729231833188,-286.56,0.00011442,2]
[340428137,1729231833198,-286.56,0.00011445,2]
[340428138,1729231833207,-286.56,0.00011448,2]
[340428139,1729231833217,-286.56,0.00011451,2]
[340428140,1729231833226,-286.56,0.00011454,2]
[340428141,1729231833236,-286.56,0.00011457,2]
[340428142,1729231833246,-286.56,0.0001146,2]
[340428143,1729231833256,-150.0,0.00011619,2]
[340428144,1729231833265,-394.47,0.00011748,2]
[340428145,1729231833275,-526.26,0.00011813,2]
[340428146,1729231833284,-478.92,0.00011946,2]
[340428147,1729231833294,-250.0,0.00011987,2]
[340428148,1729231833304,-150.0,0.00011998,2]
[340428149,1729231833313,-499.99,0.00012043,2]
[340428150,1729231833326,-326.89,0.00012043,2]
[340428151,1729231833336,-172.32534949,0.00012072,2]
[340428152,1729231833345,-176.45,0.00012088,2]
[340428153,1729231833355,-680.13,0.00012088,2]
[340428154,1729231833364,-250.0,0.00012172,2]
[340428155,1729231833373,-600.0,0.00012329,2]
[340428156,1729231833383,-600.0,0.00012329,2]
[340428157,1729231833393,-600.0,0.00012329,2]
[340428158,1729231833402,-600.0,0.00012329,2]
[340428159,1729231833412,-600.0,0.00012329,2]
[340428160,1729231833422,-600.0,0.00012329,2]
[340428161,1729231833432,-600.0,0.00012329,2]
[340428162,1729231833441,-600.0,0.00012329,2]
[340428163,1729231833451,-600.0,0.00012329,2]
[340428164,1729231833461,-600.0,0.00012329,2]
[340428165,1729231833471,-200.0,0.00012472,2]
[340428166,1729231833480,-552.7594,0.0001279,2]
[340428167,1729231833490,-3431.2352,0.0001279,2]
[340428168,1729231833499,-214.182,0.00012799,2]
[340428169,1729231833509,-1000.0,0.00012799,2]
[340428170,1729231833518,-11398.2768,0.00012799,2]
[340428171,1729231833527,-4843.3895,0.00012799,2]
[340428172,1729231833537,-1000.0,0.000128,2]
[340428173,1729231833546,-500.0,0.000128,2]
[340428174,1729231833556,-2500.0,0.000128,2]
[340428175,1729231833566,-720.0,0.000128,2]
[340428176,1729231833577,-1000.0,0.000128,2]
[340428177,1729231833586,-239.56,0.00012836,2]
[340428178,1729231833596,-212.1241527,0.0001287,2]
[340428179,1729231833606,-502.04628613,0.00012873,2]
[340428180,1729231833616,-160.98281179,0.00012873,2]
[340428181,1729231833626,-500.0,0.00012873,2]
[340428182,1729231833635,-500.0,0.00012873,2]
[340428183,1729231833644,-289.51899624,0.00012889,2]
[340428184,1729231833654,-10987.47859898,0.00012889,2]
[340428185,1729231833663,-1404.8542035,0.00012889,2]
[340428186,1729231833673,-617.3803564,0.00012889,2]
[340428187,1729231833683,-3858.00044707,0.0001289,2]
[340428188,1729231833840,-29185.94898623,0.0001289,2]
[340428189,1729231833852,-449.99,0.0001289,2]
[340428190,1729231838459,-500.0,0.00010998,2]
[340428191,1729231838469,-60.50565751,0.00010999,2]
[340428193,1729231840215,-500.0,0.00010998,2]
[340428194,1729231840225,-439.49434249,0.00010999,2]
[340428195,1729231840234,-500.0,0.00010999,2]
[340428196,1729231840243,-441.50565751,0.00010999,2]
[340428197,1729231840402,-58.49434249,0.00010999,2]
[340428198,1729231840413,-528.67,0.00010999,2]
[340428199,1729231840422,-409.8,0.00011,2]
[340428200,1729231840431,-926.45565751,0.0001289,2]
[340428235,1729231846309,-276.57,0.00010959,2]
[340428236,1729231846319,-500.0,0.00010998,2]
[340428237,1729231846328,-500.0,0.00010998,2]
[340428238,1729231846339,-500.0,0.00010998,2]
[340428239,1729231846349,-500.0,0.00010999,2]
[340428240,1729231846358,-20.83,0.00010999,2]
[340428241,1729231853148,-339.896612,0.00010999,2]
[340428245,1729232210685,167.41,9.514e-05,2]
[340428252,1729232455246,550.0,0.0001,2]
[340428253,1729232568556,151.22501469,0.0001,2]
[340428254,1729232583696,1008.47,9.512e-05,2]
[340428255,1729232719188,681.21379504,9e-05,2]
[340428256,1729232728804,313.95751758,0.000101,2]
[340428257,1729232733697,230.11244186,0.0001,2]
[340428274,1729232753686,602.86000303,6.94e-05,2]
[340428275,1729232760588,161.38310336,9e-05,2]
[340428276,1729232819779,-39742.25748876,0.00011,15]
[340428277,1729232825142,-3829.30041609,0.0001088,2]
[340428278,1729232836998,205.0,9.8e-05,2]
[340428279,1729232841112,246.4489123,0.000101,2]
[340428283,1729232914134,212.23388546,0.0001,2]
[340428284,1729232965680,-19871.12874438,0.00011,15]
[340428301,1729233031427,-750.97,0.00010872,2]
[340428303,1729233031437,-300.0,0.00010879,2]
[340428304,1729233031447,-24085.72388664,0.0001088,2]
[340428305,1729233031456,-2995.52369328,0.00010899,2]
[340428306,1729233031465,-150.0,0.00010899,2]
[340428307,1729233031475,-6746.94750906,0.000109,2]